[Event "*** SCC Grand Prix: Titled Tuesday Blitz"]
[Site "Chess.com"]
[Date "2020.07.14"]
[Round "3"]
[White "JesseKraai"]
[Black "mirochka"]
[Result "1-0"]
[WhiteElo "2461"]
[BlackElo "2159"]
[TimeControl "180+1"]
[EndTime "10:29:47 PDT"]
[Termination "JesseKraai won on time"]

1. d4 {[%clk 0:03:00.9]} 1... Nf6 {[%clk 0:02:59.3]} 2. c4 {[%clk 0:03:01.1]}
2... e6 {[%clk 0:02:59.7]} 3. Nc3 {[%clk 0:03:00.9]} 3... d5 {[%clk 0:03:00.2]}
4. cxd5 {[%clk 0:03:00.2]} 4... exd5 {[%clk 0:03:01.1]} 5. Bg5 {[%clk
0:03:00.1]} 5... Be7 {[%clk 0:03:01.4]} 6. e3 {[%clk 0:03:00.4]} 6... c6 {[%clk
0:02:59.9]} 7. Bd3 {[%clk 0:03:00.5]} 7... Nbd7 {[%clk 0:02:59.8]} 8. Nge2
{[%clk 0:03:00.6]} 8... Nf8 {[%clk 0:02:57.3]} 9. O-O {[%clk 0:02:55.5]} 9...
Ne6 {[%clk 0:02:57]} 10. Bh4 {[%clk 0:02:52.6]} 10... g6 {[%clk 0:02:56]} 11. f3
{[%clk 0:02:43.7]} 11... O-O {[%clk 0:02:52.4]} 12. Kh1 {[%clk 0:02:39.5]} 12...
c5 {[%clk 0:02:43.6]} 13. Rc1 {[%clk 0:02:31.6]} 13... cxd4 {[%clk 0:02:39.9]}
14. exd4 {[%clk 0:02:27.7]} 14... Ng7 {[%clk 0:02:38.6]} 15. Nf4 {[%clk
0:02:12.1]} 15... Be6 {[%clk 0:02:31.2]} 16. Re1 {[%clk 0:02:06]} 16... a6
{[%clk 0:02:29.7]} 17. Bf1 {[%clk 0:01:52.3]} 17... b5 {[%clk 0:02:27.7]} 18.
Nxe6 {[%clk 0:01:43.4]} 18... Nxe6 {[%clk 0:02:24]} 19. Bf2 {[%clk 0:01:43.3]}
19... Rc8 {[%clk 0:02:17.7]} 20. a4 {[%clk 0:01:41]} 20... b4 {[%clk 0:02:16.2]}
21. Nb1 {[%clk 0:01:37.4]} 21... Rxc1 {[%clk 0:02:01]} 22. Qxc1 {[%clk
0:01:36.9]} 22... a5 {[%clk 0:01:59.1]} 23. Nd2 {[%clk 0:01:30.4]} 23... Nd7
{[%clk 0:01:56.9]} 24. Qc6 {[%clk 0:01:20.9]} 24... Nb6 {[%clk 0:01:34.8]} 25.
Nb3 {[%clk 0:01:13.7]} 25... Bf6 {[%clk 0:01:19.4]} 26. Bb5 {[%clk 0:01:05.3]}
26... Bg7 {[%clk 0:01:12.2]} 27. h3 {[%clk 0:01:03.6]} 27... Nc8 {[%clk
0:00:45]} 28. Qd7 {[%clk 0:00:54.1]} 28... Qg5 {[%clk 0:00:40.4]} 29. Bc6 {[%clk
0:00:43.8]} 29... Nf4 {[%clk 0:00:26.1]} 30. Qg4 {[%clk 0:00:37.6]} 30... Qxg4
{[%clk 0:00:24]} 31. hxg4 {[%clk 0:00:37.6]} 31... Nb6 {[%clk 0:00:20.6]} 32.
Nxa5 {[%clk 0:00:34.2]} 32... Nd3 {[%clk 0:00:20.6]} 33. Re2 {[%clk 0:00:33.9]}
33... Nxf2+ {[%clk 0:00:19.3]} 34. Rxf2 {[%clk 0:00:34.3]} 34... Bxd4 {[%clk
0:00:19.8]} 35. Re2 {[%clk 0:00:33.6]} 35... Rc8 {[%clk 0:00:17.8]} 36. b3
{[%clk 0:00:32.5]} 36... Bc3 {[%clk 0:00:15.8]} 37. g3 {[%clk 0:00:29.6]} 37...
d4 {[%clk 0:00:14.7]} 38. Bb5 {[%clk 0:00:29.9]} 38... Rd8 {[%clk 0:00:13.8]}
39. Bd3 {[%clk 0:00:30.2]} 39... Nd5 {[%clk 0:00:13]} 40. Nc6 {[%clk 0:00:29.1]}
40... Ra8 {[%clk 0:00:10.5]} 41. Be4 {[%clk 0:00:28.3]} 41... Nf6 {[%clk
0:00:07.7]} 42. Ne7+ {[%clk 0:00:27.6]} 42... Kg7 {[%clk 0:00:08]} 43. Bxa8
{[%clk 0:00:27.4]} 43... d3 {[%clk 0:00:08.5]} 44. Re3 {[%clk 0:00:26.9]} 44...
d2 {[%clk 0:00:08.6]} 45. Rd3 {[%clk 0:00:27.2]} 45... h5 {[%clk 0:00:06.1]} 46.
g5 {[%clk 0:00:25.4]} 46... Nh7 {[%clk 0:00:05.6]} 47. f4 {[%clk 0:00:25.8]}
47... Nf8 {[%clk 0:00:05.8]} 48. Bd5 {[%clk 0:00:25.1]} 48... f6 {[%clk
0:00:04.7]} 49. Nc6 {[%clk 0:00:24.1]} 49... fxg5 {[%clk 0:00:04.4]} 50. fxg5
{[%clk 0:00:24.2]} 50... Nd7 {[%clk 0:00:04.7]} 51. Bc4 {[%clk 0:00:22.6]} 51...
Nc5 {[%clk 0:00:04.8]} 52. Rd6 {[%clk 0:00:21.6]} 52... Ne4 {[%clk 0:00:04.8]}
53. Rd7+ {[%clk 0:00:21.8]} 53... Kf8 {[%clk 0:00:05]} 54. Kg2 {[%clk 0:00:22]}
54... Nc5 {[%clk 0:00:03.6]} 55. Rd5 {[%clk 0:00:21.1]} 55... Ne4 {[%clk
0:00:03.6]} 56. Ne5 {[%clk 0:00:19.3]} 56... Nxg5 {[%clk 0:00:03.4]} 57. Nf3
{[%clk 0:00:18.6]} 57... Ne4 {[%clk 0:00:02.8]} 58. Kf1 {[%clk 0:00:17.2]} 58...
g5 {[%clk 0:00:03]} 59. Ke2 {[%clk 0:00:16.7]} 59... Nxg3+ {[%clk 0:00:02.9]}
60. Kd1 {[%clk 0:00:16.7]} 60... g4 {[%clk 0:00:02.6]} 61. Nxd2 {[%clk
0:00:16.5]} 61... h4 {[%clk 0:00:02.2]} 62. Nf1 {[%clk 0:00:15.3]} 62... Ne4
{[%clk 0:00:01.9]} 63. Rf5+ {[%clk 0:00:14.8]} 1-0

[Event "*** SCC Grand Prix: Titled Tuesday Blitz"]
[Site "Chess.com"]
[Date "2020.07.14"]
[Round "3"]
[White "vladislavkovalev"]
[Black "francyIM"]
[Result "0-1"]
[WhiteElo "2910"]
[BlackElo "2656"]
[TimeControl "180+1"]
[EndTime "10:29:49 PDT"]
[Termination "francyIM won by resignation"]

1. e4 {[%clk 0:03:00.9]} 1... c6 {[%clk 0:02:56.5]} 2. Nf3 {[%clk 0:03:01.1]}
2... d5 {[%clk 0:02:57.4]} 3. Nc3 {[%clk 0:03:02]} 3... Nf6 {[%clk 0:02:55.6]}
4. e5 {[%clk 0:03:01.8]} 4... Ne4 {[%clk 0:02:55.6]} 5. Ne2 {[%clk 0:03:02.4]}
5... Qb6 {[%clk 0:02:51.8]} 6. d4 {[%clk 0:03:02.4]} 6... e6 {[%clk 0:02:47.3]}
7. Ng3 {[%clk 0:03:02.5]} 7... c5 {[%clk 0:02:46.4]} 8. Bd3 {[%clk 0:02:54.3]}
8... Nxg3 {[%clk 0:02:37.8]} 9. fxg3 {[%clk 0:02:51.7]} 9... Nc6 {[%clk
0:02:34.8]} 10. O-O {[%clk 0:02:46.3]} 10... h6 {[%clk 0:02:28.9]} 11. a3 {[%clk
0:02:30]} 11... Bd7 {[%clk 0:02:23.9]} 12. Kh1 {[%clk 0:01:57.6]} 12... cxd4
{[%clk 0:02:20.3]} 13. Qe2 {[%clk 0:01:55.3]} 13... Qc7 {[%clk 0:02:15.1]} 14.
g4 {[%clk 0:01:55]} 14... g5 {[%clk 0:02:09.2]} 15. b4 {[%clk 0:01:51]} 15...
Bg7 {[%clk 0:02:07.4]} 16. Re1 {[%clk 0:01:47.9]} 16... a6 {[%clk 0:02:06.4]}
17. Bb2 {[%clk 0:01:41]} 17... Rc8 {[%clk 0:02:01.8]} 18. Rab1 {[%clk
0:01:00.3]} 18... O-O {[%clk 0:01:58.3]} 19. Nxd4 {[%clk 0:00:32.7]} 19... Nxe5
{[%clk 0:01:46.7]} 20. Nxe6 {[%clk 0:00:33]} 20... Bxe6 {[%clk 0:01:40.9]} 21.
Bxe5 {[%clk 0:00:33.5]} 21... Bxe5 {[%clk 0:01:40.1]} 22. Qxe5 {[%clk
0:00:34.4]} 22... Qxe5 {[%clk 0:01:40.1]} 23. Rxe5 {[%clk 0:00:35.3]} 23... Rc3
{[%clk 0:01:35.8]} 24. Ra1 {[%clk 0:00:35.5]} 24... Bxg4 {[%clk 0:01:28.7]} 25.
Rxd5 {[%clk 0:00:34.2]} 25... Re8 {[%clk 0:01:28.6]} 26. Kg1 {[%clk 0:00:33]}
26... Kg7 {[%clk 0:01:21.2]} 27. Rd6 {[%clk 0:00:29.1]} 27... Re7 {[%clk
0:01:18.5]} 28. Kf2 {[%clk 0:00:28.3]} 28... Bh5 {[%clk 0:01:15.4]} 29. Re1
{[%clk 0:00:19.4]} 29... Rxe1 {[%clk 0:01:07.6]} 30. Kxe1 {[%clk 0:00:20.3]}
30... Rxa3 {[%clk 0:01:08]} 31. Rb6 {[%clk 0:00:20.9]} 31... Ra1+ {[%clk
0:00:57.6]} 32. Kf2 {[%clk 0:00:17.6]} 32... Ra2 {[%clk 0:00:30.6]} 33. Rxb7
{[%clk 0:00:15.9]} 33... Bd1 {[%clk 0:00:29.7]} 34. Rc7 {[%clk 0:00:15.8]} 34...
Rb2 {[%clk 0:00:30]} 35. Ke1 {[%clk 0:00:15.5]} 35... Bg4 {[%clk 0:00:29.7]} 36.
Rb7 {[%clk 0:00:13.7]} 36... a5 {[%clk 0:00:28.6]} 37. b5 {[%clk 0:00:13.9]}
37... a4 {[%clk 0:00:28.3]} 38. Ra7 {[%clk 0:00:14.4]} 38... Rb4 {[%clk
0:00:23.4]} 39. Kd2 {[%clk 0:00:12.9]} 39... Be6 {[%clk 0:00:23.1]} 40. g3
{[%clk 0:00:11.6]} 40... h5 {[%clk 0:00:20.8]} 41. Kc3 {[%clk 0:00:10.8]} 41...
Rb1 {[%clk 0:00:19.6]} 42. Rxa4 {[%clk 0:00:09.9]} 42... f5 {[%clk 0:00:19.7]}
43. Rb4 {[%clk 0:00:09.1]} 43... Ra1 {[%clk 0:00:19]} 44. b6 {[%clk 0:00:09.3]}
44... Ra8 {[%clk 0:00:19.6]} 45. b7 {[%clk 0:00:09.1]} 45... Rb8 {[%clk
0:00:20.1]} 46. Kd4 {[%clk 0:00:09.8]} 46... Kf6 {[%clk 0:00:19.7]} 47. Kc5
{[%clk 0:00:10.2]} 47... Ke5 {[%clk 0:00:19.5]} 48. Kb6 {[%clk 0:00:04.5]} 48...
Bd5 {[%clk 0:00:19.8]} 49. Rb5 {[%clk 0:00:04.3]} 49... Rxb7+ {[%clk 0:00:19.4]}
50. Ka5 {[%clk 0:00:03.3]} 50... Rxb5+ {[%clk 0:00:20.3]} 51. Kxb5 {[%clk
0:00:03.7]} 51... f4 {[%clk 0:00:20.4]} 52. gxf4+ {[%clk 0:00:04.6]} 52... gxf4
{[%clk 0:00:21.3]} 53. Kc5 {[%clk 0:00:04.8]} 53... Bg2 {[%clk 0:00:21.3]} 54.
c4 {[%clk 0:00:01.6]} 54... f3 {[%clk 0:00:21.5]} 55. Kb4 {[%clk 0:00:01.3]}
55... f2 {[%clk 0:00:21.8]} 56. Kc3 {[%clk 0:00:01.9]} 56... f1=Q {[%clk
0:00:22]} 57. Bxf1 {[%clk 0:00:02.5]} 57... Bxf1 {[%clk 0:00:22.9]} 58. c5
{[%clk 0:00:03.4]} 58... Bg2 {[%clk 0:00:23.3]} 59. Kd2 {[%clk 0:00:03.8]} 59...
Kf5 {[%clk 0:00:23.7]} 60. Ke3 {[%clk 0:00:04.7]} 60... Kg4 {[%clk 0:00:23.9]}
61. Kf2 {[%clk 0:00:04.9]} 61... Kh3 {[%clk 0:00:23.5]} 0-1

[Event "*** SCC Grand Prix: Titled Tuesday Blitz"]
[Site "Chess.com"]
[Date "2020.07.14"]
[Round "3"]
[White "harlem4brew"]
[Black "Ceejay271"]
[Result "0-1"]
[WhiteElo "2113"]
[BlackElo "2341"]
[TimeControl "180+1"]
[EndTime "10:29:52 PDT"]
[Termination "Ceejay271 won by checkmate"]

1. e4 {[%clk 0:03:00.9]} 1... c5 {[%clk 0:02:59.6]} 2. Nf3 {[%clk 0:03:01]} 2...
Nc6 {[%clk 0:02:59.5]} 3. d4 {[%clk 0:02:57]} 3... cxd4 {[%clk 0:03:00.4]} 4.
Nxd4 {[%clk 0:02:55.4]} 4... g6 {[%clk 0:03:01]} 5. Nc3 {[%clk 0:02:54.7]} 5...
Bg7 {[%clk 0:03:00.8]} 6. Be3 {[%clk 0:02:53.5]} 6... Nf6 {[%clk 0:03:00.7]} 7.
f3 {[%clk 0:02:52.2]} 7... d5 {[%clk 0:02:59.5]} 8. Nxc6 {[%clk 0:02:50.1]} 8...
bxc6 {[%clk 0:02:59.5]} 9. e5 {[%clk 0:02:46.3]} 9... Nd7 {[%clk 0:02:52.6]} 10.
f4 {[%clk 0:02:44.1]} 10... O-O {[%clk 0:02:52]} 11. Be2 {[%clk 0:02:40.7]}
11... e6 {[%clk 0:02:51.1]} 12. O-O {[%clk 0:02:38.8]} 12... f6 {[%clk
0:02:49.1]} 13. Bg4 {[%clk 0:02:36.4]} 13... f5 {[%clk 0:02:44.4]} 14. Be2
{[%clk 0:02:33.1]} 14... Rb8 {[%clk 0:02:30.2]} 15. Rb1 {[%clk 0:02:29.6]} 15...
Qa5 {[%clk 0:02:24.8]} 16. a3 {[%clk 0:02:28]} 16... c5 {[%clk 0:02:21.3]} 17.
Bd2 {[%clk 0:02:21]} 17... Qd8 {[%clk 0:01:57.8]} 18. b4 {[%clk 0:02:16.6]}
18... cxb4 {[%clk 0:01:28.8]} 19. axb4 {[%clk 0:02:15.3]} 19... Nb6 {[%clk
0:01:28.8]} 20. Be3 {[%clk 0:02:11.1]} 20... a6 {[%clk 0:01:22.2]} 21. Bc5
{[%clk 0:01:58.7]} 21... Rf7 {[%clk 0:01:20.3]} 22. Qd4 {[%clk 0:01:56]} 22...
Bf8 {[%clk 0:01:16.5]} 23. Bd3 {[%clk 0:01:51.7]} 23... Qc7 {[%clk 0:00:49.8]}
24. Ne2 {[%clk 0:01:49.4]} 24... Bxc5 {[%clk 0:00:47.7]} 25. bxc5 {[%clk
0:01:48.1]} 25... Nd7 {[%clk 0:00:47.8]} 26. Rxb8 {[%clk 0:01:33.1]} 26... Nxb8
{[%clk 0:00:48.7]} 27. Qb4 {[%clk 0:01:25.6]} 27... Nd7 {[%clk 0:00:48.3]} 28.
Ra1 {[%clk 0:00:58]} 28... Qxc5+ {[%clk 0:00:47.9]} 29. Qd4 {[%clk 0:00:56.9]}
29... Qxd4+ {[%clk 0:00:47]} 30. Nxd4 {[%clk 0:00:55.4]} 30... Nc5 {[%clk
0:00:47.7]} 31. Be2 {[%clk 0:00:53.4]} 31... Rc7 {[%clk 0:00:45.5]} 32. Ra5
{[%clk 0:00:46.8]} 32... Kf7 {[%clk 0:00:44.9]} 33. h4 {[%clk 0:00:42]} 33...
Bb7 {[%clk 0:00:38.1]} 34. Ra3 {[%clk 0:00:36.6]} 34... Ke7 {[%clk 0:00:34.6]}
35. h5 {[%clk 0:00:34.6]} 35... gxh5 {[%clk 0:00:33.6]} 36. Bxh5 {[%clk
0:00:32.8]} 36... Ne4 {[%clk 0:00:33.6]} 37. Be2 {[%clk 0:00:30.1]} 37... Rc3
{[%clk 0:00:31.6]} 38. Ra2 {[%clk 0:00:25]} 38... Nc5 {[%clk 0:00:20.4]} 39. Rb2
{[%clk 0:00:16.3]} 39... Kd7 {[%clk 0:00:18.8]} 40. Kf2 {[%clk 0:00:14]} 40...
Kc7 {[%clk 0:00:17.2]} 41. Rb4 {[%clk 0:00:12.2]} 41... Ra3 {[%clk 0:00:15.9]}
42. g3 {[%clk 0:00:10]} 42... a5 {[%clk 0:00:15.8]} 43. Rb2 {[%clk 0:00:09.1]}
43... Bc6 {[%clk 0:00:16]} 44. Bb5 {[%clk 0:00:07.7]} 44... Ne4+ {[%clk
0:00:15]} 45. Ke1 {[%clk 0:00:07.3]} 45... Ra1+ {[%clk 0:00:13.8]} 46. Ke2
{[%clk 0:00:06.9]} 46... Bxb5+ {[%clk 0:00:12.9]} 47. Nxb5+ {[%clk 0:00:06.6]}
47... Kd7 {[%clk 0:00:13.5]} 48. Nd4 {[%clk 0:00:05.1]} 48... Nxg3+ {[%clk
0:00:13.3]} 49. Kf3 {[%clk 0:00:05.1]} 49... Ne4 {[%clk 0:00:14.2]} 50. Rb7+
{[%clk 0:00:04.9]} 50... Kc8 {[%clk 0:00:13.3]} 51. Rxh7 {[%clk 0:00:05.3]}
51... a4 {[%clk 0:00:13.7]} 52. Nxe6 {[%clk 0:00:05.5]} 52... a3 {[%clk
0:00:14.2]} 53. Rc7+ {[%clk 0:00:05.1]} 53... Kb8 {[%clk 0:00:14]} 54. Rd7
{[%clk 0:00:05.5]} 54... a2 {[%clk 0:00:14]} 55. Ke2 {[%clk 0:00:05.4]} 55...
Re1+ {[%clk 0:00:13.7]} 56. Kxe1 {[%clk 0:00:05.6]} 56... a1=Q+ {[%clk
0:00:14.6]} 57. Ke2 {[%clk 0:00:06.3]} 57... Qa6+ {[%clk 0:00:13.9]} 58. Kf3
{[%clk 0:00:06.3]} 58... Qa3+ {[%clk 0:00:13.7]} 59. Kg2 {[%clk 0:00:06.2]}
59... Qg3+ {[%clk 0:00:13.6]} 60. Kh1 {[%clk 0:00:06.5]} 60... Nf2# {[%clk
0:00:14]} 0-1

[Event "*** SCC Grand Prix: Titled Tuesday Blitz"]
[Site "Chess.com"]
[Date "2020.07.14"]
[Round "3"]
[White "Sacbutt"]
[Black "earling8018"]
[Result "1-0"]
[WhiteElo "2301"]
[BlackElo "2051"]
[TimeControl "180+1"]
[EndTime "10:29:52 PDT"]
[Termination "Sacbutt won on time"]

1. d4 {[%clk 0:03:00.9]} 1... d5 {[%clk 0:02:59.1]} 2. c4 {[%clk 0:03:00.9]}
2... e6 {[%clk 0:02:59.5]} 3. Nc3 {[%clk 0:03:01.4]} 3... c5 {[%clk 0:02:58]} 4.
Nf3 {[%clk 0:02:59.7]} 4... Nf6 {[%clk 0:02:56.3]} 5. e3 {[%clk 0:02:57.1]} 5...
Nc6 {[%clk 0:02:54.3]} 6. cxd5 {[%clk 0:02:56.2]} 6... exd5 {[%clk 0:02:53]} 7.
Bb5 {[%clk 0:02:56.1]} 7... Bd6 {[%clk 0:02:46.6]} 8. dxc5 {[%clk 0:02:53.8]}
8... Bxc5 {[%clk 0:02:45.8]} 9. O-O {[%clk 0:02:50.2]} 9... O-O {[%clk
0:02:45.3]} 10. h3 {[%clk 0:02:49.7]} 10... Bf5 {[%clk 0:02:39.6]} 11. b3 {[%clk
0:02:38]} 11... Rc8 {[%clk 0:02:36.2]} 12. Bb2 {[%clk 0:02:36.8]} 12... Qd6
{[%clk 0:02:13.1]} 13. Ne2 {[%clk 0:02:28]} 13... Ne4 {[%clk 0:01:59.2]} 14.
Ned4 {[%clk 0:02:19.6]} 14... Nxd4 {[%clk 0:01:38.4]} 15. Nxd4 {[%clk
0:02:15.7]} 15... Qg6 {[%clk 0:01:29.4]} 16. Nxf5 {[%clk 0:02:09.1]} 16... Qxf5
{[%clk 0:01:29.7]} 17. Qe2 {[%clk 0:01:56.8]} 17... Rfd8 {[%clk 0:01:28.2]} 18.
Rad1 {[%clk 0:01:54.9]} 18... Bb4 {[%clk 0:01:23.9]} 19. Bd3 {[%clk 0:01:46]}
19... Qe6 {[%clk 0:01:19.8]} 20. Bd4 {[%clk 0:01:28.4]} 20... b6 {[%clk
0:01:17.8]} 21. Ba6 {[%clk 0:01:22.6]} 21... Nc3 {[%clk 0:00:59.9]} 22. Bxc3
{[%clk 0:00:57.2]} 22... Rxc3 {[%clk 0:00:58.2]} 23. Rd3 {[%clk 0:00:52.8]}
23... Qc6 {[%clk 0:00:50.9]} 24. Rfd1 {[%clk 0:00:49.2]} 24... g6 {[%clk
0:00:47.8]} 25. Rxc3 {[%clk 0:00:48.3]} 25... Qxc3 {[%clk 0:00:46.5]} 26. Qd3
{[%clk 0:00:44.7]} 26... d4 {[%clk 0:00:40.1]} 27. exd4 {[%clk 0:00:37.3]} 27...
Qxd3 {[%clk 0:00:20.7]} 28. Rxd3 {[%clk 0:00:38.2]} 28... f6 {[%clk 0:00:14.6]}
29. Kf1 {[%clk 0:00:34.9]} 29... Kf7 {[%clk 0:00:14.2]} 30. Ke2 {[%clk
0:00:21.8]} 30... Ke7 {[%clk 0:00:14.4]} 31. Kf3 {[%clk 0:00:19]} 31... Rd5
{[%clk 0:00:14.6]} 32. Re3+ {[%clk 0:00:17.8]} 32... Kd6 {[%clk 0:00:13.3]} 33.
Ke4 {[%clk 0:00:18.1]} 33... Ra5 {[%clk 0:00:13.1]} 34. Bc4 {[%clk 0:00:16.7]}
34... Rxa2 {[%clk 0:00:13.2]} 35. Kf3 {[%clk 0:00:17.2]} 35... Rd2 {[%clk
0:00:12.3]} 36. Rd3 {[%clk 0:00:16.4]} 36... Rxd3+ {[%clk 0:00:12.2]} 37. Bxd3
{[%clk 0:00:17.3]} 37... Kd5 {[%clk 0:00:12.4]} 38. Ke3 {[%clk 0:00:17.5]} 38...
Bc3 {[%clk 0:00:12.8]} 39. Bc4+ {[%clk 0:00:18.1]} 39... Kd6 {[%clk 0:00:11.8]}
40. Kd3 {[%clk 0:00:19]} 40... Bb2 {[%clk 0:00:11.6]} 41. Bg8 {[%clk 0:00:19.6]}
41... h6 {[%clk 0:00:11.1]} 42. Bh7 {[%clk 0:00:20.5]} 42... g5 {[%clk
0:00:11.1]} 43. Be4 {[%clk 0:00:20.9]} 43... Ba3 {[%clk 0:00:09.7]} 44. g4
{[%clk 0:00:21.1]} 44... Bb2 {[%clk 0:00:08.9]} 45. f3 {[%clk 0:00:22]} 45...
Ba3 {[%clk 0:00:08.9]} 46. Kc4 {[%clk 0:00:22.4]} 46... a6 {[%clk 0:00:08.8]}
47. Bb7 {[%clk 0:00:21.9]} 47... b5+ {[%clk 0:00:08.9]} 48. Kd3 {[%clk
0:00:22.2]} 48... a5 {[%clk 0:00:09.1]} 49. Ba6 {[%clk 0:00:22.7]} 49... a4
{[%clk 0:00:08]} 50. bxa4 {[%clk 0:00:22]} 50... bxa4 {[%clk 0:00:08.5]} 51. Bb5
{[%clk 0:00:22.4]} 51... Bb2 {[%clk 0:00:06.2]} 52. Bxa4 {[%clk 0:00:22.7]}
52... Kd5 {[%clk 0:00:06.4]} 53. Bb3+ {[%clk 0:00:23.3]} 53... Kd6 {[%clk
0:00:06.9]} 54. Ke4 {[%clk 0:00:23.8]} 54... Ba1 {[%clk 0:00:03.4]} 55. Bc4
{[%clk 0:00:23.7]} 55... Bb2 {[%clk 0:00:03.6]} 56. Bd3 {[%clk 0:00:22.2]} 56...
Ba1 {[%clk 0:00:03.7]} 57. Bb1 {[%clk 0:00:22.8]} 57... Bb2 {[%clk 0:00:03.6]}
58. Ba2 {[%clk 0:00:23.7]} 58... Ba1 {[%clk 0:00:03.6]} 59. d5 {[%clk
0:00:24.6]} 59... Bb2 {[%clk 0:00:02.8]} 60. Kf5 {[%clk 0:00:25.1]} 60... Bd4
{[%clk 0:00:01.5]} 61. Kg6 {[%clk 0:00:24.8]} 61... Ke5 {[%clk 0:00:01.4]} 62.
Kxh6 {[%clk 0:00:24.8]} 62... Bc5 {[%clk 0:00:01.6]} 63. Kg6 {[%clk 0:00:24.6]}
1-0

[Event "*** SCC Grand Prix: Titled Tuesday Blitz"]
[Site "Chess.com"]
[Date "2020.07.14"]
[Round "3"]
[White "kran900"]
[Black "Yoshikrov"]
[Result "1-0"]
[WhiteElo "2458"]
[BlackElo "2126"]
[TimeControl "180+1"]
[EndTime "10:29:54 PDT"]
[Termination "kran900 won on time"]

1. e4 {[%clk 0:03:00.9]} 1... c5 {[%clk 0:02:58.9]} 2. Nf3 {[%clk 0:03:00.7]}
2... d6 {[%clk 0:02:58.5]} 3. d4 {[%clk 0:03:01.1]} 3... cxd4 {[%clk 0:02:58.6]}
4. Nxd4 {[%clk 0:03:02]} 4... Nf6 {[%clk 0:02:56.6]} 5. Nc3 {[%clk 0:03:02.5]}
5... a6 {[%clk 0:02:56.7]} 6. Be3 {[%clk 0:03:03]} 6... e5 {[%clk 0:02:56.1]} 7.
Nb3 {[%clk 0:03:02.6]} 7... Be6 {[%clk 0:02:54.8]} 8. f3 {[%clk 0:03:02.9]} 8...
h5 {[%clk 0:02:54.9]} 9. Qd2 {[%clk 0:03:03.2]} 9... Nbd7 {[%clk 0:02:52]} 10.
O-O-O {[%clk 0:03:03.4]} 10... b5 {[%clk 0:02:52.3]} 11. Kb1 {[%clk 0:02:53.2]}
11... Nb6 {[%clk 0:02:52]} 12. Qf2 {[%clk 0:02:52.4]} 12... Nc4 {[%clk
0:02:43.5]} 13. Bc1 {[%clk 0:02:52]} 13... Rc8 {[%clk 0:02:26.5]} 14. Bxc4
{[%clk 0:02:42.7]} 14... Bxc4 {[%clk 0:02:23.7]} 15. f4 {[%clk 0:02:39.6]} 15...
Qc7 {[%clk 0:02:14.7]} 16. fxe5 {[%clk 0:02:39.1]} 16... dxe5 {[%clk 0:02:14.9]}
17. Nd5 {[%clk 0:02:38.7]} 17... Bxd5 {[%clk 0:01:44.8]} 18. exd5 {[%clk
0:02:38.3]} 18... Be7 {[%clk 0:01:45]} 19. Rhe1 {[%clk 0:02:24.9]} 19... O-O
{[%clk 0:01:41.8]} 20. Re2 {[%clk 0:01:55.5]} 20... a5 {[%clk 0:01:40.3]} 21. d6
{[%clk 0:01:24.9]} 21... Bxd6 {[%clk 0:01:37.8]} 22. Nxa5 {[%clk 0:01:16.1]}
22... Bc5 {[%clk 0:01:36.5]} 23. Qe1 {[%clk 0:01:16.2]} 23... Rfe8 {[%clk
0:01:19.8]} 24. Nb3 {[%clk 0:01:09.3]} 24... Bb6 {[%clk 0:01:11.5]} 25. Qg3
{[%clk 0:01:01.8]} 25... Kh8 {[%clk 0:00:43.3]} 26. Bg5 {[%clk 0:00:57.7]} 26...
Ng4 {[%clk 0:00:37.8]} 27. h3 {[%clk 0:00:56.3]} 27... Nf2 {[%clk 0:00:37.9]}
28. Rxf2 {[%clk 0:00:55.3]} 28... Bxf2 {[%clk 0:00:36.1]} 29. Qxf2 {[%clk
0:00:55.9]} 29... f6 {[%clk 0:00:34]} 30. Be3 {[%clk 0:00:55]} 30... Red8 {[%clk
0:00:32.6]} 31. Rc1 {[%clk 0:00:53.5]} 31... Qf7 {[%clk 0:00:30]} 32. Qe2 {[%clk
0:00:51]} 32... b4 {[%clk 0:00:24.3]} 33. Rd1 {[%clk 0:00:50.4]} 33... Qg6
{[%clk 0:00:23.1]} 34. Rxd8+ {[%clk 0:00:48.9]} 34... Rxd8 {[%clk 0:00:23]} 35.
Bd2 {[%clk 0:00:47.7]} 35... Rb8 {[%clk 0:00:18.6]} 36. g4 {[%clk 0:00:45]}
36... hxg4 {[%clk 0:00:18.7]} 37. hxg4 {[%clk 0:00:45]} 37... Qh7 {[%clk
0:00:16.4]} 38. g5 {[%clk 0:00:40.5]} 38... Qh1+ {[%clk 0:00:16.1]} 39. Nc1
{[%clk 0:00:40]} 39... Kg8 {[%clk 0:00:13.3]} 40. gxf6 {[%clk 0:00:39.2]} 40...
gxf6 {[%clk 0:00:13.7]} 41. Qg4+ {[%clk 0:00:39.3]} 41... Kf7 {[%clk 0:00:13]}
42. Bxb4 {[%clk 0:00:34.6]} 42... Qb7 {[%clk 0:00:12.2]} 43. a3 {[%clk
0:00:31.8]} 43... Qb5 {[%clk 0:00:12]} 44. Nd3 {[%clk 0:00:31.1]} 44... Rg8
{[%clk 0:00:09.8]} 45. Qh5+ {[%clk 0:00:31.2]} 45... Ke6 {[%clk 0:00:08.4]} 46.
Qh3+ {[%clk 0:00:29.9]} 46... Kf7 {[%clk 0:00:07]} 47. b3 {[%clk 0:00:24.2]}
47... Rg1+ {[%clk 0:00:06.1]} 48. Kb2 {[%clk 0:00:24]} 48... Rg5 {[%clk
0:00:05.2]} 49. Qh7+ {[%clk 0:00:23.4]} 49... Rg7 {[%clk 0:00:04.6]} 50. Qe4
{[%clk 0:00:21.9]} 50... Rg5 {[%clk 0:00:03.9]} 51. Bd2 {[%clk 0:00:17.3]} 51...
Rg8 {[%clk 0:00:01.7]} 52. a4 {[%clk 0:00:16.9]} 52... Qd7 {[%clk 0:00:01]} 53.
Qc4+ {[%clk 0:00:15.1]} 1-0